Cogmind - Beta 17 @@@ ROGUE MODE // 2026.08.23 @ 18:18:31 Player: Mogmind Result: Destroyed by S-27 Virus with Autogun Performance ------------- Evolutions (6) 3000 Regions Visited (12) 2400 Robots Destroyed (42) 210 Value Destroyed (2009) 2009 Prototype IDs (2) 40 Alien Tech Used (0) 0 Bonus (1600) 1600 TOTAL SCORE: 9259 Bonus ------- Entered Garrisons 600 Used RIF Installer 500 Entered DSFs 500 Cogmind --------- Core Integrity 0/1150 Matter 149/300 Energy 88/100 System Corruption 7% Temperature Cool (0) Movement Core (50) Location -4/Factory Parts ------- > --- POWER (2) -------- (None) > --- PROPULSION (6) --- (None) > --- UTILITY (7) ------ (None) > --- WEAPON (4) ------- (None) > --- INVENTORY (5) ---- Nuclear Pulse Array Medium Storage Unit Relay Coupler [Sentry] (20) Relay Coupler [Demolisher] (21) Peak State ------------ > --- POWER ------------ Light Angular Momentum Engine > --- PROPULSION ------- Carbon-fiber Leg Titanium Leg Titanium Leg Flexi-carbon Leg Biometal Leg > --- UTILITY ---------- High-capacity Storage Unit Matter Compressor Improved Signal Interpreter Improved Phase Shifter Layered Medium Armor Plating Drone Bay > --- WEAPON ----------- Plasma Rifle High-powered Shotgun Great Axe > --- INVENTORY -------- Ion Engine Ion Engine Light Angular Momentum Engine Light Treads Carbon-fiber Leg Advanced Heat Sink Medium Storage Unit Improved Melee Analysis Suite Kinecellerator Transmission Jammer Relay Coupler [Sentry] Relay Coupler [Demolisher] Missile Launcher [Rating: 69] Favorites ----------- Power Ion Engine Engine Ion Engine Power Core Light Nuclear Core Propulsion Titanium Leg Treads Light Treads Leg Titanium Leg Wheel Compact Wheel Hover Unit Linear Gravjet Flight Unit Field Propulsion Drive Utility Improved Signal Interpreter Device Drone Bay Storage High-capacity Storage Unit Processor Improved Signal Interpreter Hackware Relay Coupler [Grunt] Protection Improved Medium Armor Plating Weapon Gauss Rifle Energy Gun Plasma Rifle Energy Cannon Heavy Phase Cannon Ballistic Gun Gauss Rifle Ballistic Cannon Gauss Cannon Launcher Missile Launcher Slashing Weapon Great Axe Special Melee Weapon Improved Datajack Build | -11 -10 -9 -8 -8 -8 -7 -7 -6 -6 -5 -5 -4 ------- Run | Yrd Mat Mat Mat Gar Mat Fac DSF Fac Gar Fac Gar Fac Slots Evolved 12 | . . 2 2 . . 2 . 2 . 2 . 2 Power 1 | . . . . . . . . . . 1 . . Propulsion 4 | . . 1 1 . . 1 . . . . . 1 Utility 5 | . . 1 1 . . 1 . 1 . . . 1 Weapon 2 | . . . . . . . . 1 . 1 . . Parts Attached 97 | 6 5 9 2 6 8 2 13 8 15 8 7 8 Power 11 | 1 . 2 . . 1 . 1 1 2 1 2 . Engine 8 | 1 . 2 . . . . . . 2 1 2 . Core 3 | . . . . . 1 . 1 1 . . . . Reactor . | . . . . . . . . . . . . . Propulsion 39 | 2 . 4 1 3 2 1 7 2 6 4 2 5 Treads 7 | . . . 1 1 1 . 1 . 1 . . 2 Leg 23 | 2 . 3 . 1 1 1 6 1 5 1 2 . Wheel 7 | . . 1 . 1 . . . 1 . 1 . 3 Hover 1 | . . . . . . . . . . 1 . . Flight 1 | . . . . . . . . . . 1 . . Utility 25 | 1 2 1 1 1 3 1 3 4 5 1 1 1 Device 7 | . . . 1 . . . . 1 3 1 1 . Storage 6 | 1 1 . . . . . 1 2 . . . 1 Processor 3 | . 1 . . . 1 . . . 1 . . . Hackware 3 | . . . . 1 1 . . . 1 . . . Protection 6 | . . 1 . . 1 1 2 1 . . . . Artifact . | . . . . . . . . . . . . . Weapon 22 | 2 3 2 . 2 2 . 2 1 2 2 2 2 Energy Gun 7 | 1 1 2 . . . . . 1 1 . 1 . Energy Cannon 7 | . 2 . . . . . . . . 2 1 2 Ballistic Gun 3 | 1 . . . 1 1 . . . . . . . Ballistic Cannon 2 | . . . . . . . 2 . . . . . Launcher 1 | . . . . 1 . . . . . . . . Special Weapon . | . . . . . . . . . . . . . Impact Weapon . | . . . . . . . . . . . . . Slashing Weapon 1 | . . . . . . . . . 1 . . . Piercing Weapon . | . . . . . . . . . . . . . Special Melee Weapon 1 | . . . . . 1 . . . . . . . Unidentified Prototypes 2 | . 1 1 . . . . . . . . . . Parts Lost 51 | . . 1 . 3 1 . 1 3 20 . 17 5 Power 6 | . . . . . . . . . 2 . 4 . Propulsion 20 | . . . . 2 . . . 1 7 . 7 3 Utility 13 | . . . . 1 1 . 1 2 6 . 1 1 Weapon 12 | . . 1 . . . . . . 5 . 5 1 Highest Loss Streak 19 | . . 1 . 3 1 . 1 2 19 . 17 3 To Critical Strikes . | . . . . . . . . . . . . . Average Backups 10 | 3 7 8 8 9 9 8 10 16 17 7 6 3 Power 2 | . 1 1 2 2 2 2 2 4 4 1 . . Propulsion 1 | 2 4 3 2 1 . . . 2 2 . . . Utility 3 | . . 1 1 1 4 3 3 4 7 4 3 3 Weapon 2 | . 1 2 2 4 2 3 3 3 2 2 2 . Tool/Special . | . . . . . . . . . . . . . Unused Backups 10 | . . 2 . 2 1 . 1 . . . 1 3 Power . | . . . . . . . . . . . . . Propulsion 1 | . . . . . . . . . . . . 1 Utility 4 | . . 1 . . . . . . . . 1 2 Weapon 5 | . . 1 . 2 1 . 1 . . . . . Tool/Special . | . . . . . . . . . . . . . Average Slot Usage (%) 86 | . 95 90 97 99 99 99 99 94 97 79 48 10 Engine 4 | . 14 10 9 9 5 . . . 1 11 3 . Core 2 | . . . . . 3 7 7 6 4 . . . Treads 5 | . . . 6 9 17 15 11 . . 5 1 5 Leg 17 | . 28 22 18 17 9 15 20 28 30 4 4 . Wheel 4 | . . 10 9 8 8 7 4 4 . 1 2 . Device 3 | . . . 9 9 5 . . 5 6 4 4 . Storage 8 | . 14 11 9 9 9 7 7 6 13 11 6 . Processor 7 | . 10 11 9 9 9 7 7 6 6 11 6 . Hackware 3 | . . . . 1 9 15 8 2 . . . . Protection 6 | . . 3 9 8 3 6 13 14 11 . . . Energy Gun 4 | . 4 4 18 17 7 . . 4 5 . 1 . Energy Cannon 3 | . 9 9 . . . . . . . 9 6 4 Ballistic Gun 5 | . 14 7 . . 10 7 7 6 5 . . . Ballistic Cannon 1 | . . . . . . . 1 3 4 . . . Launcher 1 | . . . . . . . 4 1 . 4 1 . Peak Build Rating 69 | 6 9 14 16 19 31 38 45 59 69 65 68 25 Average Rating 33 | 4 8 10 15 16 25 37 41 52 61 54 34 13 On Entrance 25 | . 6 9 14 16 19 31 38 45 59 25 65 2 Avg Prop Armor Cover (%) 15 | . . 14 19 19 20 20 15 8 8 10 13 15 Naked Turns 166 | . . . . . . . . . . . 64 102 Heaviest Build 103 | 13 20 25 24 24 42 40 69 103 101 90 90 19 Greatest Support 97 | 20 20 16 16 16 10 10 85 49 97 20 33 58 Greatest Overweight (x) 7 | 2 . 2 1 2 4 3 5 6 6 7 7 . Average Overweight (x) 1 | . . 1 1 1 2 3 2 3 1 5 . . Largest Inventory Capacity 20 | 8 10 10 10 10 10 10 20 20 20 20 20 5 Average Capacity 13 | 6 8 10 10 10 10 10 13 20 20 20 13 5 Most Carried 20 | 6 9 10 10 10 10 9 14 20 20 9 9 5 Average Carried 10 | 3 7 8 8 9 9 8 10 16 17 7 6 4 Final Capacity 20 | 8 10 10 10 10 10 10 20 20 20 20 5 5 Final Carried 19 | 6 9 10 10 7 10 8 14 19 8 9 5 5 Class Distribution -------------------- 74% | Mutant 16% | Tank 9% | Scavenger-Mutant Dominant Class ---------------- Mutant | -10/Materials Mutant | -9/Materials Mutant | -8/Materials Scavenger-Mutant | -8/Garrison Mutant | -8/Materials Mutant | -7/Factory Mutant | -7/DSF Tank | -6/Factory Tank | -6/Garrison Mutant | -5/Factory Mutant | -5/Garrison Mutant | -4/Factory Resources | -11 -10 -9 -8 -8 -8 -7 -7 -6 -6 -5 -5 -4 ----------- Run | Yrd Mat Mat Mat Gar Mat Fac DSF Fac Gar Fac Gar Fac Matter Collected 1422 | 223 41 187 . 85 138 . 260 158 158 . 114 58 Remotely . | . . . . . . . . . . . . . Salvage Created 1644 | . 49 298 . 154 82 . 265 67 292 . 214 223 Parts 80 | . 5 13 . 6 7 . 15 1 11 . 11 11 Haulers Intercepted 2 | . . . . . . . 1 . . . . 1 Recyclers Shooed . | . . . . . . . . . . . . . Parts Field Recycled . | . . . . . . . . . . . . . Retrieved Matter . | . . . . . . . . . . . . . Parts Self-Destructed . | . . . . . . . . . . . . . Prevented . | . . . . . . . . . . . . . Parts Restored . | . . . . . . . . . . . . . Kills | -11 -10 -9 -8 -8 -8 -7 -7 -6 -6 -5 -5 -4 ------- Run | Yrd Mat Mat Mat Gar Mat Fac DSF Fac Gar Fac Gar Fac Combat Hostiles Destroyed 40 | . 3 7 . 7 2 . 8 1 6 . 4 2 Melee 3 | . . . . . . . . . . . 3 . Guns 14 | . 3 . . 3 2 . 1 1 4 . . . Cannons 12 | . . 7 . . . . 1 . 2 . 1 1 AOE 10 | . . . . 4 . . 6 . . . . . Classes Destroyed 8 | . 1 2 . . 1 . 3 . . . . 1 Hauler 2 | . . . . . . . 1 . . . . 1 Swarmer 12 | . 3 . . 4 . . 4 . 1 . . . Grunt 18 | . . 6 . 3 . . . . 5 . 4 . Sentry 3 | . . 1 . . 1 . . 1 . . . . Specialist 2 | . . . . . . . 2 . . . . . Hunter 2 | . . . . . 1 . 1 . . . . . Programmer 2 | . . . . . . . . . . . . 2 Heavy 1 | . . . . . . . 1 . . . . . Best Kill Streak 7 | . 3 4 . 7 1 . 4 1 3 . 3 1 Combat Bots Only 7 | . 3 4 . 7 1 . 4 1 3 . 3 1 Max Kills in Single Turn 4 | . 2 1 . 2 1 . 4 1 1 . 1 1 Gunslinging 1 | . 1 . . . . . . . . . . . Exploded 4 | . . . . 2 . . 4 . . . . . Melee 1 | . . . . . . . . . . . 1 . Uniques/NPCs Destroyed . | . . . . . . . . . . . . . Combat | -11 -10 -9 -8 -8 -8 -7 -7 -6 -6 -5 -5 -4 -------- Run | Yrd Mat Mat Mat Gar Mat Fac DSF Fac Gar Fac Gar Fac Hostile Shots Fired 828 | . 12 20 . 51 22 . 39 98 219 . 212 155 Missed 311 | . 5 6 . 12 3 . 11 39 88 . 78 69 Hits 517 | . 7 14 . 39 19 . 28 59 131 . 134 86 Projectile 517 | . 7 14 . 39 19 . 28 59 131 . 134 86 AOE 3 | . . . . . . . . . . . . 3 Critical Strikes 12 | . . . . . . . 1 . . . 7 4 Part Disruptions 1 | . . . . . . . . . . . . 1 Damage Taken 8931 | . 63 180 . 503 246 . 626 658 2391 . 2536 1728 Core 2729 | . 24 24 . 128 21 . 203 40 259 . 871 1159 Absorbed by Shields . | . . . . . . . . . . . . . Ignored by Resistances 440 | . . . . . 34 . 163 103 140 . . . Regen/Repaired (Parts) 149 | . . 31 . . 118 . . . . . . . Core Remaining (%) 71 | 100 90 94 . . 72 . 71 . 64 . 12 . Volleys Fired 80 | . 4 17 . 11 8 . 9 5 17 . 2 7 Largest 3 | . 2 2 . 2 2 . 2 3 3 . 3 2 Hottest 270 | . 60 88 . 117 86 . 68 143 143 . 270 171 Shots Fired 151 | . 8 34 . 19 15 . 15 12 35 . 4 9 Gun 102 | . 8 17 . 17 15 . 6 10 28 . 1 . Cannon 44 | . . 17 . . . . 6 2 7 . 3 9 Launcher 5 | . . . . 2 . . 3 . . . . . Special . | . . . . . . . . . . . . . Kinetic 69 | . 4 17 . 2 7 . 12 7 20 . . . Thermal 71 | . . 17 . 15 8 . . 5 15 . 4 7 Explosive 5 | . . . . 2 . . 3 . . . . . Electromagnetic 6 | . 4 . . . . . . . . . . 2 Robot Hit Streak 14 | . 2 6 . 7 14 . 6 3 7 . 5 12 Robot Miss Streak 2 | . 2 2 . 2 1 . 1 2 2 . . 1 Penetration Max 1 | . . . . . . . . . 1 . . . Secondary Targets 4 | . 2 . . 1 . . . . 1 . . . Max Gunslinging Chain 1 | . 1 . . 1 . . . . 1 . . . Shots Hit Robots 131 | . 4 19 . 13 26 . 10 12 26 . 13 8 Core Hits 69 | . 3 10 . 9 5 . 16 3 12 . 9 2 Critical Kills 1 | . . . . . . . . . . . . 1 Critical Parts Destroyed . | . . . . . . . . . . . . . Critical Strikes 5 | . . . . 2 2 . . . . . . 1 Burn 4 | . . . . 2 2 . . . . . . . Meltdown 1 | . . . . . . . . . . . . 1 Melee Attacks 36 | . . . . . 14 . . 6 4 . 12 . Impact . | . . . . . . . . . . . . . Slashing 13 | . . . . . . . . . 1 . 12 . Piercing . | . . . . . . . . . . . . . Sneak Attacks 12 | . . . . . 8 . . 4 . . . . Combat Hostiles 2 | . . . . . 2 . . . . . . . Follow-up Attacks . | . . . . . . . . . . . . . Damage Inflicted 3455 | . 46 296 . 492 242 . 807 138 599 . 476 359 Guns 1160 | . 46 51 . 200 242 . 55 109 438 . 19 . Cannons 917 | . . 245 . . . . 120 29 161 . 71 291 Explosions 974 | . . . . 292 . . 632 . . . . 50 Melee 384 | . . . . . . . . . . . 384 . Ramming 20 | . . . . . . . . . . . 2 18 Kinetic 937 | . 16 51 . 39 110 . 175 92 454 . . . Thermal 1081 | . . 245 . 161 132 . . 46 145 . 90 262 Explosive 924 | . . . . 292 . . 632 . . . . . Electromagnetic 109 | . 30 . . . . . . . . . . 79 Impact . | . . . . . . . . . . . . . Slashing 384 | . . . . . . . . . . . 384 . Piercing . | . . . . . . . . . . . . . Highest Corruption 7 | . . . . . . . . . . . 3 7 Average Corruption 4 | . . . . . . . . . . . 2 5 Corruption Purged . | . . . . . . . . . . . . . Corruption Blocked . | . . . . . . . . . . . . . Effects 5 | . . . . . . . . . . . 1 4 Message Errors 2 | . . . . . . . . . . . . 2 Matter Fused 1 | . . . . . . . . . . . . 1 Energy Discharges 1 | . . . . . . . . . . . 1 . Data Loss (major) 1 | . . . . . . . . . . . . 1 Overload Shots . | . . . . . . . . . . . . . Overflow Damage 41 | . . . . 36 . . . . . . . 5 Projectiles 5 | . . . . . . . . . . . . 5 Explosions 36 | . . . . 36 . . . . . . . . Melee . | . . . . . . . . . . . . . Knockbacks 4 | . . . . . . . . . 4 . . . Impact . | . . . . . . . . . . . . . Kinetic 4 | . . . . . . . . . 4 . . . Secondary . | . . . . . . . . . . . . . Self-Inflicted Damage 101 | . . . . 72 . . . . . . 1 28 Shots 3 | . . . . 2 . . . . . . . 1 Rammed 4 | . . . . . . . . . . . 1 3 Targets Rammed 4 | . . . . . . . . . . . 1 3 Kicked . | . . . . . . . . . . . . . Crushed . | . . . . . . . . . . . . . Highest Temperature 1920 | . 40 288 . 336 99 . 1920 274 461 . 135 54 Average Temperature 248 | . 27 120 . 164 43 . 696 126 176 . 56 13 Received Heat Transfer 1837 | . 9 96 . 144 36 . . 102 516 . 934 . Effects 42 | . . . . 1 . . 39 . 2 . . . Shutdowns 7 | . . . . 1 . . 6 . . . . . Energy Bleed 6 | . . . . . . . 5 . 1 . . . Interference 1 | . . . . . . . 1 . . . . . Matter Decay 4 | . . . . . . . 4 . . . . . Short Circuit 6 | . . . . . . . 5 . 1 . . . Damage (minor) 8 | . . . . . . . 8 . . . . . Damage (major) 9 | . . . . . . . 9 . . . . . Damage (core) 1 | . . . . . . . 1 . . . . . Siege Activations . | . . . . . . . . . . . . . Martial Activations . | . . . . . . . . . . . . . Shielding Activations . | . . . . . . . . . . . . . Robots Disrupted . | . . . . . . . . . . . . . Combat Hostiles . | . . . . . . . . . . . . . Robots Corrupted . | . . . . . . . . . . . . . Combat Hostiles . | . . . . . . . . . . . . . Parts Fried . | . . . . . . . . . . . . . Impact Corruptions . | . . . . . . . . . . . . . Robots Melted 1 | . . . . . . . . . . . . 1 Combat Hostiles 1 | . . . . . . . . . . . . 1 Parts Melted 4 | . . . . 1 . . . . . . 1 2 Heat Transferred 2152 | . . 444 . 518 444 . . 100 300 . 111 235 Parts Sabotaged . | . . . . . . . . . . . . . Parts Stolen . | . . . . . . . . . . . . . Parts Stripped . | . . . . . . . . . . . . . Power Chain Reactions 1 | . . . . . . . . . . . . 1 Alert | -11 -10 -9 -8 -8 -8 -7 -7 -6 -6 -5 -5 -4 ------- Run | Yrd Mat Mat Mat Gar Mat Fac DSF Fac Gar Fac Gar Fac Maximum Alert Level 1 | . . . . . . . 1 . . . . . Low Security (%) 95 | 100 100 100 100 100 100 100 40 100 100 100 100 100 Level 1 4 | . . . . . . . 59 . . . . . Level 2 . | . . . . . . . . . . . . . Level 3 . | . . . . . . . . . . . . . Level 4 . | . . . . . . . . . . . . . Level 5 . | . . . . . . . . . . . . . High Security . | . . . . . . . . . . . . . Max Security . | . . . . . . . . . . . . . Sterilizations 1 | . . . . . . . 1 . . . . . Peak Influence 215 | . 60 160 . 184 89 12 215 112 126 5 75 62 Initial 112 | . . . . 6 89 . 1 112 21 . . 46 Average 36 | . 14 40 . 44 19 2 150 17 88 . 13 27 Influence Increases 1345 | . 74 200 10 208 101 12 215 78 178 5 170 94 Destroy 0b10 Robot/C 800 | . 60 140 . 140 40 . 160 20 120 . 80 40 Destroy 0b10 Robot/NC 20 | . . . . . . . 15 . . . . 5 Destroy Leader 102 | . 10 30 . . 20 . 30 . . . . 12 Allied During Kill 3 | . . . . . . . . . 3 . . . Successful Hack 100 | . 4 . 10 . 25 12 . 28 . 5 . 16 Disable Machine 15 | . . . . . . . . . . . . 15 Anti-Garrison Action 100 | . . . . 50 . . . . 50 . . . Destroy Structure 40 | . . . . 18 1 . 10 . 5 . . 6 Lose Combat Pursuer 165 | . . 30 . . 15 . . 30 . . 90 . Influence Decreases 1345 | . 74 200 . 34 285 10 2 263 208 5 80 184 Entered New Map 256 | . . . . 4 95 . 1 103 9 . . 44 Time Decay 639 | . 74 80 . . 190 10 . 160 . 5 . 120 Lost Part 280 | . . . . 30 . . 1 . 149 . 80 20 Lost Ally 50 | . . . . . . . . . 50 . . . Purge Threat 120 | . . 120 . . . . . . . . . . Squads Dispatched 14 | . . 1 . . 3 1 2 2 . 1 . 4 Investigation 4 | . . . . . 1 1 . 1 . . . 1 Extermination 3 | . . . . . . . . 1 . 1 . 1 Reinforcement 7 | . . 1 . . 2 . 2 . . . . 2 Assault . | . . . . . . . . . . . . . Garrison . | . . . . . . . . . . . . . Intercept . | . . . . . . . . . . . . . Searches Triggered . | . . . . . . . . . . . . . Construction Impeded 1 | . . . . . . . . . . . . 1 Haulers Reinforced . | . . . . . . . . . . . . . Active Scanning Responses . | . . . . . . . . . . . . . Cargo Convoy Interrupts . | . . . . . . . . . . . . . Stealth | -11 -10 -9 -8 -8 -8 -7 -7 -6 -6 -5 -5 -4 --------- Run | Yrd Mat Mat Mat Gar Mat Fac DSF Fac Gar Fac Gar Fac Distress Signals 7 | . 1 1 . . 4 . . . . . . 1 Communications Jammed . | . . . . . . . . . . . . . Distress Signals . | . . . . . . . . . . . . . Times Spotted 93 | . 5 11 . 7 8 . 8 11 14 . 12 17 Peak Tracking Total 14 | . 4 5 . 7 3 . 4 4 7 . 11 14 Tactical Retreats 5 | . . 1 . . 1 . . 1 . . 2 . Traps | -11 -10 -9 -8 -8 -8 -7 -7 -6 -6 -5 -5 -4 ------- Run | Yrd Mat Mat Mat Gar Mat Fac DSF Fac Gar Fac Gar Fac Traps Triggered 14 | . . 1 . 3 . . 5 2 2 . 1 . Indirectly . | . . . . . . . . . . . . . Trap Hack Attempts . | . . . . . . . . . . . . . Triggered . | . . . . . . . . . . . . . Disarmed . | . . . . . . . . . . . . . Reprogrammed . | . . . . . . . . . . . . . Reused . | . . . . . . . . . . . . . Traps Extracted . | . . . . . . . . . . . . . Installed . | . . . . . . . . . . . . . Triggered . | . . . . . . . . . . . . . Machines | -11 -10 -9 -8 -8 -8 -7 -7 -6 -6 -5 -5 -4 ---------- Run | Yrd Mat Mat Mat Gar Mat Fac DSF Fac Gar Fac Gar Fac Machines Disabled 3 | . . . . 1 . . . . 1 . . 1 Max in Single Turn 1 | . . . . 1 . . . . 1 . . 1 Garrison Relay 2 | . . . . 1 . . . . 1 . . . Machines Repaired . | . . . . . . . . . . . . . Machines Dismantled . | . . . . . . . . . . . . . Machines Sabotaged . | . . . . . . . . . . . . . Overloaded Fab Kills . | . . . . . . . . . . . . . Hacking | -11 -10 -9 -8 -8 -8 -7 -7 -6 -6 -5 -5 -4 --------- Run | Yrd Mat Mat Mat Gar Mat Fac DSF Fac Gar Fac Gar Fac Machines Accessed 31 | . 3 3 1 . 9 3 . 5 . 3 . 4 Terminals 15 | . 2 2 . . 6 1 . 1 . 2 . 1 Fabricators 2 | . . . . . . . . 1 . . . 1 Repair Stations 4 | . . 1 . . 1 1 . 1 . . . . Recycling Units 5 | . 1 . . . 1 1 . . . . . 2 Scanalyzers 2 | . . . . . 1 . . 1 . . . . Garrison Access 3 | . . . 1 . . . . 1 . 1 . . Total Hacks 70 | . 8 7 2 . 20 7 . 10 . 5 . 11 Successful 39 | . 4 3 2 . 11 3 . 8 . 4 . 4 Failed 30 | . 4 4 . . 8 4 . 2 . 1 . 7 Catastrophic 6 | . 3 . . . 1 2 . . . . . . Database Lockouts 1 | . . . . . 1 . . . . . . . Manual 10 | . 3 . . . 4 . . . . 1 . 2 Terminals 29 | . 6 5 . . 8 1 . 2 . 2 . 5 Fabricators 2 | . . . . . . . . 1 . . . 1 Repair Stations 17 | . . 2 . . 8 4 . 3 . . . . Recycling Units 10 | . 2 . . . 1 2 . . . . . 5 Scanalyzers 5 | . . . . . 3 . . 2 . . . . Garrison Access 7 | . . . 2 . . . . 2 . 3 . . Terminal Hacks 15 | . 3 1 . . 3 1 . 2 . 1 . 4 Record 4 | . . . . . . . . . . . . 4 Part Schematic 1 | . . . . . . . . 1 . . . . Robot Analysis 1 | . . . . . 1 . . . . . . . Open DSF 2 | . . . . . . 1 . . . 1 . . Branch Access Points 1 | . . . . . 1 . . . . . . . Emergency Access Points 1 | . 1 . . . . . . . . . . . Terminal Index 1 | . 1 . . . . . . . . . . . Unreport Threat 1 | . . 1 . . . . . . . . . . Locate Traps 1 | . 1 . . . . . . . . . . . Zone Layout 2 | . . . . . 1 . . 1 . . . . Fabricator Hacks 1 | . . . . . . . . 1 . . . . Network Status 1 | . . . . . . . . 1 . . . . Repair Station Hacks 9 | . . 2 . . 4 1 . 2 . . . . Scan Component 5 | . . 1 . . 2 1 . 1 . . . . Repair 4 | . . 1 . . 2 . . 1 . . . . Recycling Unit Hacks 3 | . 1 . . . 1 1 . . . . . . Report Inventory 3 | . 1 . . . 1 1 . . . . . . Scanalyzer 4 | . . . . . 3 . . 1 . . . . Insert Component 1 | . . . . . 1 . . . . . . . Retrieve Study 3 | . . . . . 2 . . 1 . . . . Garrison Access Hacks 7 | . . . 2 . . . . 2 . 3 . . Unlock Access 3 | . . . 1 . . . . 1 . 1 . . Coupler Status 4 | . . . 1 . . . . 1 . 2 . . Unauthorized Hacks . | . . . . . . . . . . . . . Terminals . | . . . . . . . . . . . . . Fabricators . | . . . . . . . . . . . . . Repair Stations . | . . . . . . . . . . . . . Recycling Units . | . . . . . . . . . . . . . Scanalyzers . | . . . . . . . . . . . . . Garrison Access . | . . . . . . . . . . . . . Data Cores Recovered . | . . . . . . . . . . . . . Used . | . . . . . . . . . . . . . Hacking Detections 25 | . 3 2 1 . 7 2 . 4 . 2 . 4 Full Trace Events 3 | . . . . . . 1 . 1 . . . 1 Feedback Events . | . . . . . . . . . . . . . Feedback Blocked . | . . . . . . . . . . . . . Robot Schematics Acquired . | . . . . . . . . . . . . . Robots Built . | . . . . . . . . . . . . . Authchips . | . . . . . . . . . . . . . Time . | . . . . . . . . . . . . . Total Robot Build Rating . | . . . . . . . . . . . . . Part Schematics Acquired 1 | . . . . . . . . 1 . . . . Parts Built . | . . . . . . . . . . . . . Authchips . | . . . . . . . . . . . . . Time . | . . . . . . . . . . . . . Total Part Build Rating . | . . . . . . . . . . . . . Part Studies Acquired 3 | . . . . . 2 . . 1 . . . . Parts Repaired 4 | . . 1 . . 2 . . 1 . . . . Time 131 | . . 26 . . 52 . . 53 . . . . Parts Recycled . | . . . . . . . . . . . . . Recycled Matter . | . . . . . . . . . . . . . Retrieved Matter . | . . . . . . . . . . . . . Retrieved Components . | . . . . . . . . . . . . . Parts Scanalyzed . | . . . . . . . . . . . . . Part Schematics Acquired . | . . . . . . . . . . . . . Parts Damaged . | . . . . . . . . . . . . . Bothacking | -11 -10 -9 -8 -8 -8 -7 -7 -6 -6 -5 -5 -4 ------------ Run | Yrd Mat Mat Mat Gar Mat Fac DSF Fac Gar Fac Gar Fac Used RIF Installer 1 | . . . . 1 . . . . . . . . Robots Hacked 7 | . . . . . 3 . . 1 3 . . . Non-combat 2 | . . . . . 2 . . . . . . . Combat 5 | . . . . . 1 . . 1 3 . . . Robot Hacks Applied 10 | . . . . . 5 . . 2 3 . . . parse_system 1 | . . . . . 1 . . . . . . . no_distress 1 | . . . . . 1 . . . . . . . scatter_targeting 1 | . . . . . 1 . . . . . . . link_complan 1 | . . . . . . . . . 1 . . . wipe_record 1 | . . . . . 1 . . . . . . . reboot_system 1 | . . . . . . . . 1 . . . . go_dormant 1 | . . . . . 1 . . . . . . . overwrite_iff 1 | . . . . . . . . 1 . . . . formatsys_high 2 | . . . . . . . . . 2 . . . Relay Couplers Released 8 | . . . . 5 . . . . 3 . . . Machine Destruction 8 | . . . . 5 . . . . 3 . . . Attached 3 | . . . . 1 1 . . . 1 . . . Fabnet Peak Effective % . | . . . . . . . . . . . . . Robots Rewired . | . . . . . . . . . . . . . Allies Hacked . | . . . . . . . . . . . . . Hacks Repelled . | . . . . . . . . . . . . . Allies | -11 -10 -9 -8 -8 -8 -7 -7 -6 -6 -5 -5 -4 -------- Run | Yrd Mat Mat Mat Gar Mat Fac DSF Fac Gar Fac Gar Fac Total Allies 3 | . . . . . . . . 1 2 . . . Largest Group 2 | . . . . . . . . 1 2 . . . Highest-Rated Group 58 | . . . . . . . . 32 58 . . . Highest-Rated Ally 32 | . . . . . . . . 32 29 . . . Total Orders . | . . . . . . . . . . . . . Ally Attacks 27 | . . . . . . . . . 27 . . . Total Damage 471 | . . . . . . . . . 471 . . . Kills . | . . . . . . . . . . . . . Allies Corrupted . | . . . . . . . . . . . . . Allies Melted . | . . . . . . . . . . . . . Intel | -11 -10 -9 -8 -8 -8 -7 -7 -6 -6 -5 -5 -4 ------- Run | Yrd Mat Mat Mat Gar Mat Fac DSF Fac Gar Fac Gar Fac Active Infowar (turns) 723 | . . . 24 265 380 . . . . . 54 . Sensors 669 | . . . 24 265 380 . . . . . . . Jamming 54 | . . . . . . . . . . . 54 . Robot Analysis Total 1 | . . . . . 1 . . . . . . . Derelict Logs Recovered . | . . . . . . . . . . . . . Drone Launches 2 | . . . . . . . . . 2 . . . Drone Recoveries 1 | . . . . . . . . . 1 . . . Exploration | -11 -10 -9 -8 -8 -8 -7 -7 -6 -6 -5 -5 -4 ------------- Run | Yrd Mat Mat Mat Gar Mat Fac DSF Fac Gar Fac Gar Fac Turns Passed 4287 | 80 325 392 24 265 690 101 320 832 397 385 159 317 Spaces Moved 2641 | 57 248 217 14 196 493 87 165 375 194 144 147 304 Core 338 | 7 . . . . . . . . . . 128 203 Treads 176 | . . . . . . . . . 2 74 . 100 Legs 680 | 50 248 3 . . . . 71 132 175 . 1 . Wheels 1447 | . . 214 14 196 493 87 94 243 17 70 18 1 Hover . | . . . . . . . . . . . . . Flight . | . . . . . . . . . . . . . Fastest Speed 50 | 50 120 100 115 110 85 115 115 175 116 195 50 50 Average Speed 128 | 114 120 116 115 114 107 115 131 185 148 256 68 81 Slowest Speed 410 | 150 120 260 115 115 130 115 410 196 240 320 260 152 Overloaded Moves . | . . . . . . . . . . . . . Propulsion Burnouts . | . . . . . . . . . . . . . Robots Hopped . | . . . . . . . . . . . . . Potential Cave-ins . | . . . . . . . . . . . . . Cave-ins Triggered . | . . . . . . . . . . . . . Exploration Rate (%) 25 | 4 44 20 2 26 52 3 95 13 33 4 28 9 Regions Visited 12 Branch Regions . Pre-discovered Areas . | . . . . . . . . . . . . . Known Exits Taken 7 | . 1 1 1 . 1 1 . 1 . 1 . . Unknown Exits Taken 1 | 1 . . . . . . . . . . . . Scrap Searched . | . . . . . . . . . . . . . Spaces Dug . | . . . . . . . . . . . . . Terrain Destroyed 23 | . . . . 8 . . 10 2 . . . 3 Melee . | . . . . . . . . . . . . . Projectile 4 | . . . . . . . . 2 . . . 2 AOE 19 | . . . . 8 . . 10 . . . . 1 Terrain Rammed . | . . . . . . . . . . . . . Walls Destroyed . | . . . . . . . . . . . . . Machines Disabled . | . . . . . . . . . . . . . Actions | -11 -10 -9 -8 -8 -8 -7 -7 -6 -6 -5 -5 -4 --------- Run | Yrd Mat Mat Mat Gar Mat Fac DSF Fac Gar Fac Gar Fac Total 3342 | 68 268 325 22 217 639 88 252 494 272 157 178 362 Wait 313 | . 4 64 . . 102 . 16 73 8 . 10 36 Move 2632 | 56 247 216 14 195 492 86 164 375 193 144 146 304 Hop . | . . . . . . . . . . . . . Pick Up 51 | 6 4 4 4 2 7 . 7 6 6 4 . 1 Fast Attach 42 | 6 3 8 . . 2 . 3 3 1 6 4 6 Attach 36 | . 1 1 2 3 2 2 1 3 13 3 3 2 Detach 3 | . . 1 . . . . 1 . 1 . . . Swap 42 | . 1 5 . 3 6 . 12 7 8 . . . Drop 40 | . 4 9 2 3 6 . 5 . 8 . . 3 Fire 80 | . 4 17 . 11 8 . 9 5 17 . 2 7 Melee 36 | . . . . . 14 . . 6 4 . 12 . Ram 3 | . . . . . . . . . . . 1 2 Kick . | . . . . . . . . . . . . . Crush 1 | . . . . . . . . . . . . 1 Escape Stasis 61 | . . . . . . . 32 16 13 . . . Rewire 2 | . . . . . . . 2 . . . . . Trap . | . . . . . . . . . . . . . Miscellaneous . | . . . . . . . . . . . . . Route ------- -11/Scrapyard -10/Materials (discovered 3 exits: *Mat x2 / *Min) -9/Materials -8/Materials -8/Garrison -8/Materials -7/Factory -7/DSF -6/Factory -6/Garrison -5/Factory (discovered 3 exits: *Upp / Gar / DSF) -5/Garrison -4/Factory History --------- Turn | Location | Event 20 | -11/Scrapyard | Discovered new exit (range 14) 81 | -11/Scrapyard | Entered Materials 230 | -10/Materials | Discovered new exit (range 4) 236 | -10/Materials | Identified exit to Materials 265 | -10/Materials | Discovered new exit (range 7) 272 | -10/Materials | Identified exit to Mines 308 | -10/Materials | Build established: Mutant 333 | -10/Materials | Discovered exit to Materials (range 8) 406 | -10/Materials | Entered another Materials area 406 | -9/Materials | Evolved 2 slots: Propulsion x1, Utility x1 514 | -9/Materials | Repaired Ion Engine 748 | -9/Materials | Discovered new exit (range 8) 779 | -9/Materials | Identified exit to Materials 798 | -9/Materials | Entered another Materials area 798 | -8/Materials | Evolved 2 slots: Propulsion x1, Utility x1 822 | -8/Materials | Identified exit to Garrison 822 | -8/Materials | Entered Garrison 920 | -8/Garrison | Triggered checkpoint 935 | -8/Garrison | Installed Relay Interface Framework 959 | -8/Garrison | Garrison Relay disabled 986 | -8/Garrison | Build established: Scavenger-Mutant 1038 | -8/Garrison | Triggered checkpoint 1061 | -8/Garrison | Discovered new exit (range 6) 1086 | -8/Garrison | Identified exit to Materials 1087 | -8/Garrison | Entered Materials 1089 | -8/Materials | Destroyed 7 combat bots 1090 | -8/Materials | Lost 3 parts (2n1u) 1166 | -8/Materials | Repaired Lgt. Treads 1193 | -8/Materials | Repaired Wheel 1350 | -8/Materials | Build established: Mutant 1387 | -8/Materials | Central database locked down 1521 | -8/Materials | Discovered new exit (range 3) 1523 | -8/Materials | Identified exit to Factory 1777 | -8/Materials | Entered Factory 1777 | -7/Factory | Evolved 2 slots: Propulsion x1, Utility x1 1878 | -7/Factory | Identified exit to DSF 1878 | -7/Factory | Entered DSF 1920 | -7/DSF | Additional patrols routed to DSF 1995 | -7/DSF | Discovered new exit (range 16) 2062 | -7/DSF | Sterilization system engaged 2082 | -7/DSF | Ambient heat levels rising (+10) 2097 | -7/DSF | Ambient heat levels rising (+10) 2111 | -7/DSF | Identified exit to Factory 2112 | -7/DSF | Ambient heat levels rising (+10) 2127 | -7/DSF | Ambient heat levels rising (+10) 2142 | -7/DSF | Ambient heat levels rising (+10) 2157 | -7/DSF | Ambient heat levels rising (+10) 2172 | -7/DSF | Ambient heat levels rising (+10) 2187 | -7/DSF | Ambient heat levels rising (+10) 2198 | -7/DSF | Entered Factory 2198 | -6/Factory | Evolved 2 slots: Utility x1, Weapon x1 2759 | -6/Factory | Repaired Broken Titanium Leg 2913 | -6/Factory | Build established: Tank 3030 | -6/Factory | Identified exit to Garrison 3030 | -6/Factory | Entered Garrison 3068 | -6/Garrison | Triggered checkpoint 3127 | -6/Garrison | Garrison Relay disabled 3303 | -6/Garrison | Spotted B-75 Beast 3308 | -6/Garrison | Triggered checkpoint 3328 | -6/Garrison | Triggered checkpoint 3393 | -6/Garrison | Discovered new exit (range 15) 3411 | -6/Garrison | Lost 3 allies 3425 | -6/Garrison | Identified exit to Factory 3427 | -6/Garrison | Entered Factory 3427 | -5/Factory | Evolved 2 slots: Power x1, Weapon x1 3456 | -5/Factory | Lost 19 parts (2p6n6u5w) 3558 | -5/Factory | Discovered new exit (range 7) 3578 | -5/Factory | Identified exit to Upper Caves 3626 | -5/Factory | Build established: Mutant 3645 | -5/Factory | Identified exit to DSF 3812 | -5/Factory | Identified exit to Garrison 3812 | -5/Factory | Entered Garrison 3828 | -5/Garrison | Triggered checkpoint 3907 | -5/Garrison | Released all parts (6) 3914 | -5/Garrison | Core integrity fell below 50% 3938 | -5/Garrison | Lost 17 parts (4p7n1u5w) 3951 | -5/Garrison | Core integrity fell below 20% 3965 | -5/Garrison | Discovered new exit (range 13) 3971 | -5/Garrison | Entered Factory 3971 | -4/Factory | Evolved 2 slots: Propulsion x1, Utility x1 4265 | -4/Factory | Core integrity fell below 50% 4279 | -4/Factory | Core integrity fell below 20% 4288 | -4/Factory | Destroyed by S-27 Virus with Autogun Last Messages --------------- 04271_ Acquired Com. Wheel. 04272_ Com. Wheel destroyed. 04273_ Slammed into U-05 Engineer. 04276_ Nuclear Reactor explodes. 04278_ U-05 Engineer destroyed. 04278_ Nuclear Reactor explodes. 04278_ W-44 Eye destroyed. 04278_ U-05 Engineer destroyed. 04278_ K-01 Serf destroyed. 04278_ T-07 Excavator destroyed. 04279_ K-01 Serf collects debris. 04280_ Acquired Wheel+. 04280_ U-05 Engineer lays Concrete. 04281_ Wheel+ destroyed. 04281_ U-05 Engineer lays Concrete. 04283_ Acquired Wheel+. 04283_ K-01 Serf collects debris. 04284_ Wheel+ destroyed. 04284_ U-05 Engineer lays Concrete. 04286_ K-01 Serf collects debris. Map ----- +----------------------------------------------------+ | ??????????????????????????????? ??????????????# | | ???????????????????????????????" ?????????????# | | ??????????????????????????????"" ?????????????# | | ??????????????????????????" """" ????????????# | | ??????????????????????????? """" ############# | | ?????????????????????????? ? + | | ?????????????????????????? ? | | ?????????????????????#######+## | | ????????????????????? ! """ """ | | ???????????????????? """ Y" | | ?????????????????????? """ """ | | ??????????????????????? | | ???????????????????????? | | ?????????????????????????# #+######## | | ?????????????????????????# % s | | ?????????????????????????# | | ?????????????????????????# R =!! | | ?????????????????????????# ! !! | | ?????????????????????????+ R % !! | | ?????????????????????????# | | ?????????????????????????# # | | ?????????????????????????# # | | ?????????????????????????# %# ###? | | ????????????????########## kR ###???? | | ????????????????# # #??????? = | | ????????????????# @ ####???????? | | ????????????????# # #????????????#####? | | ????????????????# """ # #?????????????????? | | ????????????????# """ # #?????????????????? | | ????????????????# "S # #?????????????????? | | ????????????????? """ # #?????????????????? | | ????????????????# "" !# #?????????????????? | | ????????????????# # +?????????????????? | | ????????????????########## #?????????????????? | | ?????????????????????????# #?????????????????? | | ?????????????????????????# #?????????????????? | | ????????????????????????? ?????????????????? | | ?????????????????????????? ?????????????????? | | ?????????????????????????? ? ????????????????? | | ?????????????????????????? ????????????????????? | | ?????????????????????????????????????????????????? | | ?????????????????????????????????????????????????? | | ?????????????????????????????????????????????????? | | ?????????????????????????????????????????????????? | | ?????????????????????????????????????????????????? | | ?????????????????????????????????????????????????? | | ?????????????????????????????????????????????????? | | ?????????????????????????????????????????????????? | | ?????????????????????????????????????????????????? | | ?????????????????????????????????????????????????? | +----------------------------------------------------+ Best States ------------- Heat Dissipation 59 Energy Generation 23 Energy Capacity 300 Matter Stores 300 Matter Capacity 550 Sight Range 16 Robot Scan Range 14 Terrain Scan Density 10 Jamming Range 12 Base Temperature (-) 100 Armor Coverage 675 Resistance: KI 30 Phase Shifting 10 Evasion (%) 65 Melee Accuracy 6 Recoil Reduction 2 Relay Coupler Types 2 Relay Coupler Value 41 Item Schematics ----------------- Myomer Leg | -6/Factory | Hacked Robot Schematics ------------------ None Fabricated ------------ Nothing Repaired ---------- Ion Engine | 48% | -9/Materials Lgt. Treads | 25% | -8/Materials Wheel | 65% | -8/Materials Titanium Leg | 99% | -6/Factory | Broken Studied --------- Wheel | -8/Materials | Hacked Lgt. Treads | -8/Materials | Hacked Titanium Leg | -6/Factory | Hacked Alien Tech Used ----------------- None Achievements -------------- Assimilation Complete Factory Defaults Mindtrick Challenges ------------ None Game ------ Seed SingularityUltimateStreamer Manual? 0 Play Time 01:03:06 Cumulative 35.5 hours Start 2026.08.23 @ 16:46:41 End 2026.08.23 @ 18:18:31 Sessions 3 Manual Loads 0 Difficulty Rogue Special Mode None Game No. 38 Rogue 38 Adventurer 0 Explorer 0 Win Type - Total 0 Types 0/0/0/0/0/0/0/0/0/0 Lore% 17 Gallery% 29 Achievement% 23 Wizard Run 0 Options --------- Layout 1 ASCII 0 Keyboard 1 Movement Vi Keybinds 0 Fullscreen 1 Font 24/Smallcaps Map View 50x35 Zoom Use 0% Tactical HUD 1 Map Filters NONE Filters NONE Steam 1 RUN: 4522b702-d00f-4aa4-8264-26bffbc20968